fUST/lending_fUST_20250423
["ID","MTS","AMOUNT","RATE_DAILY","PERIOD"]
[358667047,1745353838872,-373.37145863,0.00021873,2]
[358667048,1745353838882,-500.0,0.00021873,2]
[358667049,1745353838891,-500.0,0.00021873,2]
[358667050,1745353838901,-500.0,0.00021873,2]
[358667051,1745353838910,-463.88842446,0.00021873,2]
[358667052,1745353838920,-335.53007672,0.00021873,2]
[358667053,1745353838931,-500.0,0.00021873,2]
[358667054,1745353838940,-500.0,0.00021873,2]
[358667055,1745353838950,-500.0,0.00021873,2]
[358667056,1745353838959,-500.0,0.00021873,2]
[358667057,1745353838969,-500.0,0.00021873,2]
[358667058,1745353838978,-500.0,0.00021873,2]
[358667059,1745353838988,-328.47989887,0.00021873,2]
[358667060,1745353838998,-500.0,0.00021873,2]
[358667061,1745353839007,-300.0,0.00021873,2]
[358667062,1745353839017,-527.0,0.00021904,2]
[358667063,1745353839027,-151.0,0.00021913,2]
[358667064,1745353839042,-151.0,0.00021914,2]
[358667065,1745353839052,-151.0,0.00021914,2]
[358667066,1745353839061,-156.771462,0.00021914,2]
[358667067,1745353839071,-151.0,0.00021914,2]
[358667068,1745353839082,-151.0,0.00021916,2]
[358667069,1745353839092,-151.0,0.00021917,2]
[358667070,1745353839102,-151.0,0.00021917,2]
[358667071,1745353839113,-151.0,0.00021917,2]
[358667072,1745353839123,-248.30955418,0.00021917,2]
[358667073,1745353839132,-500.0,0.00021917,2]
[358667074,1745353839142,-500.0,0.00021917,2]
[358667075,1745353839151,-500.0,0.00021917,2]
[358667076,1745353839161,-500.0,0.00021917,2]
[358667077,1745353839171,-500.0,0.00021917,2]
[358667078,1745353839182,-500.0,0.00021917,2]
[358667079,1745353839191,-500.0,0.00021917,2]
[358667080,1745353839202,-500.0,0.00021917,2]
[358667081,1745353839211,-500.0,0.00021917,2]
[358667082,1745353839220,-500.0,0.00021917,2]
[358667083,1745353839230,-500.0,0.00021917,2]
[358667084,1745353839240,-500.0,0.00021917,2]
[358667085,1745353839250,-151.0,0.00021917,2]
[358667086,1745353839260,-500.0,0.00021917,2]
[358667087,1745353839270,-500.0,0.00021917,2]
[358667088,1745353839280,-500.0,0.00021917,2]
[358667089,1745353839290,-500.0,0.00021917,2]
[358667090,1745353839300,-500.0,0.00021917,2]
[358667091,1745353839309,-500.0,0.00021917,2]
[358667092,1745353839319,-500.0,0.00021917,2]
[358667093,1745353839328,-500.0,0.00021917,2]
[358667094,1745353839338,-500.0,0.00021917,2]
[358667095,1745353839348,-504.19725742,0.00021917,2]
[358667097,1745353839358,-500.0,0.00021917,2]
[358667099,1745353839367,-500.0,0.00021917,2]
[358667100,1745353839377,-500.0,0.00021917,2]
[358667101,1745353839387,-500.0,0.00021917,2]
[358667102,1745353839396,-500.0,0.00021917,2]
[358667103,1745353839406,-500.0,0.00021917,2]
[358667104,1745353839415,-500.0,0.00021917,2]
[358667105,1745353839425,-500.0,0.00021917,2]
[358667106,1745353839435,-500.0,0.00021917,2]
[358667107,1745353839444,-500.0,0.00021917,2]
[358667108,1745353839455,-500.0,0.00021917,2]
[358667109,1745353839465,-500.0,0.00021917,2]
[358667110,1745353839475,-500.0,0.00021917,2]
[358667111,1745353839485,-500.0,0.00021917,2]
[358667112,1745353839495,-500.0,0.00021917,2]
[358667113,1745353839505,-500.0,0.00021917,2]
[358667114,1745353839514,-500.0,0.00021917,2]
[358667115,1745353839523,-500.0,0.00021917,2]
[358667116,1745353839533,-500.0,0.00021917,2]
[358667117,1745353839543,-500.0,0.00021917,2]
[358667118,1745353839552,-500.0,0.00021917,2]
[358667119,1745353839562,-500.0,0.00021917,2]
[358667120,1745353839573,-500.0,0.00021917,2]
[358667121,1745353839582,-500.0,0.00021917,2]
[358667122,1745353839592,-500.0,0.00021917,2]
[358667123,1745353839602,-500.9550273,0.00021917,2]
[358667125,1745353839612,-500.0,0.00021917,2]
[358667126,1745353839622,-500.0,0.00021917,2]
[358667128,1745353839634,-500.0,0.00021917,2]
[358667129,1745353839644,-500.0,0.00021917,2]
[358667130,1745353839654,-500.0,0.00021917,2]
[358667131,1745353839663,-500.0,0.00021917,2]
[358667132,1745353839674,-500.0,0.00021917,2]
[358667133,1745353839684,-500.0,0.00021917,2]
[358667134,1745353839693,-350.88365585,0.00021917,2]
[358667135,1745353839704,-500.0,0.00021917,2]
[358667136,1745353839714,-500.0,0.00021917,2]
[358667137,1745353839723,-500.0,0.00021917,2]
[358667138,1745353839732,-500.0,0.00021917,2]
[358667139,1745353839742,-500.0,0.00021917,2]
[358667140,1745353839752,-500.0,0.00021917,2]
[358667141,1745353839762,-500.0,0.00021917,2]
[358667142,1745353839772,-500.0,0.00021917,2]
[358667143,1745353839782,-500.0,0.00021917,2]
[358667144,1745353839791,-500.0,0.00021917,2]
[358667145,1745353839801,-500.0,0.00021917,2]
[358667146,1745353839811,-500.0,0.00021917,2]
[358667147,1745353839820,-500.0,0.00021917,2]
[358667148,1745353839842,-504.34709964,0.00021917,2]
[358667149,1745353839854,-500.0,0.00021917,2]
[358667150,1745353839864,-500.0,0.00021917,2]
[358667151,1745353839875,-500.0,0.00021917,2]
[358667152,1745353839885,-500.0,0.00021917,2]
[358667153,1745353839895,-500.0,0.00021917,2]
[358667154,1745353839906,-500.0,0.00021917,2]
[358667155,1745353839915,-500.0,0.00021917,2]
[358667156,1745353839925,-2663.29,0.00021917,2]
[358667157,1745353839935,-500.0,0.00021917,2]
[358667158,1745353839946,-500.0,0.00021917,2]
[358667159,1745353839956,-500.0,0.00021917,2]
[358667161,1745353839966,-500.0,0.00021917,2]
[358667162,1745353839977,-494.11801047,0.00021917,2]
[358667164,1745353839987,-502.05179764,0.00021917,2]
[358667166,1745353839997,-500.0,0.00021917,2]
[358667168,1745353840007,-502.02585762,0.00021917,2]
[358667169,1745353840017,-500.0,0.00021917,2]
[358667171,1745353840027,-503.86041588,0.00021917,2]
[358667172,1745353840042,-502.0116866,0.00021917,2]
[358667173,1745353840051,-501.0494306,0.00021917,2]
[358667174,1745353840062,-575.66,0.00021917,2]
[358667175,1745353840072,-501.05553608,0.00021917,2]
[358667176,1745353840082,-500.0,0.00021917,2]
[358667177,1745353840092,-501.8097811,0.00021917,2]
[358667178,1745353840102,-500.0,0.00021917,2]
[358667179,1745353840112,-500.0,0.00021917,2]
[358667180,1745353840122,-500.0,0.00021917,2]
[358667181,1745353840131,-500.0,0.00021917,2]
[358667182,1745353840141,-500.0,0.00021917,2]
[358667183,1745353840150,-500.0,0.00021917,2]
[358667184,1745353840160,-500.0,0.00021917,2]
[358667185,1745353840170,-500.0,0.00021917,2]
[358667186,1745353840179,-500.0,0.00021917,2]
[358667187,1745353840189,-501.72949029,0.00021917,2]
[358667188,1745353840199,-500.0,0.00021917,2]
[358667189,1745353840209,-500.0,0.00021917,2]
[358667190,1745353840218,-503.57994469,0.00021917,2]
[358667191,1745353840229,-500.0,0.00021917,2]
[358667192,1745353840239,-500.0,0.00021917,2]
[358667193,1745353840249,-500.0,0.00021917,2]
[358667194,1745353840259,-500.0,0.00021917,2]
[358667195,1745353840269,-500.0,0.00021917,2]
[358667196,1745353840278,-500.0,0.00021917,2]
[358667197,1745353840288,-500.0,0.00021917,2]
[358667198,1745353840299,-393.53474684,0.00021917,2]
[358667199,1745353840309,-596.8,0.00021917,2]
[358667200,1745353840319,-500.0,0.00021917,2]
[358667201,1745353840328,-500.0,0.00021917,2]
[358667202,1745353840338,-500.0,0.00021917,2]
[358667203,1745353840347,-500.0,0.00021917,2]
[358667204,1745353840357,-500.0,0.00021917,2]
[358667205,1745353840367,-500.0,0.00021917,2]
[358667206,1745353840376,-500.0,0.00021917,2]
[358667207,1745353840387,-500.0,0.00021917,2]
[358667208,1745353840396,-500.0,0.00021917,2]
[358667209,1745353840407,-573.59,0.00021917,2]
[358667210,1745353840417,-501.31819858,0.00021917,2]
[358667211,1745353840427,-500.0,0.00021917,2]
[358667212,1745353840437,-500.0,0.00021917,2]
[358667213,1745353840447,-500.0,0.00021917,2]
[358667214,1745353840461,-500.0,0.00021917,2]
[358667215,1745353840471,-500.0,0.00021917,2]
[358667216,1745353840482,-500.0,0.00021917,2]
[358667217,1745353840493,-500.0,0.00021917,2]
[358667218,1745353840502,-500.0,0.00021917,2]
[358667219,1745353840512,-500.0,0.00021917,2]
[358667220,1745353840522,-500.0,0.00021917,2]
[358667221,1745353840532,-500.0,0.00021917,2]
[358667222,1745353840542,-515.49691352,0.00021917,2]
[358667223,1745353840552,-500.0,0.00021917,2]
[358667224,1745353840562,-175.20279506,0.00021917,2]
[358667225,1745353840572,-500.0,0.00021917,2]
[358667226,1745353840582,-556.94,0.00021917,2]
[358667227,1745353840593,-500.0,0.00021917,2]
[358667228,1745353840603,-500.0,0.00021917,2]
[358667229,1745353840613,-500.0,0.00021917,2]
[358667230,1745353840623,-500.0,0.00021917,2]
[358667231,1745353840633,-500.0,0.00021917,2]
[358667232,1745353840643,-557.23,0.00021917,2]
[358667233,1745353840653,-500.0,0.00021917,2]
[358667234,1745353840663,-500.0,0.00021917,2]
[358667235,1745353840673,-500.0,0.00021917,2]
[358667236,1745353840683,-500.0,0.00021917,2]
[358667237,1745353840693,-500.0,0.00021917,2]
[358667238,1745353840703,-500.0,0.00021917,2]
[358667239,1745353840713,-500.0,0.00021917,2]
[358667240,1745353840724,-506.66075598,0.00021917,2]
[358667241,1745353840733,-167.01157647,0.00021917,2]
[358667242,1745353840743,-500.0,0.00021917,2]
[358667243,1745353840753,-500.0,0.00021917,2]
[358667244,1745353840764,-1045.7,0.00021917,2]
[358667245,1745353840774,-500.0,0.00021917,2]
[358667246,1745353840784,-500.0,0.00021917,2]
[358667247,1745353840793,-401.1274198,0.00022,2]
[358667248,1745353840803,-151.0,0.00022191,7]
[358667249,1745353840813,-151.0,0.00022191,7]
[358667250,1745353840824,-500.0,0.00022191,2]
[358667251,1745353840834,-500.0,0.00022191,2]
[358667252,1745353840844,-500.0,0.00022191,2]
[358667253,1745353840854,-500.0,0.00022191,2]
[358667254,1745353840864,-500.0,0.00022191,2]
[358667255,1745353840874,-500.0,0.00022191,2]
[358667256,1745353840884,-500.0,0.00022191,2]
[358667257,1745353840894,-500.0,0.00022191,2]
[358667258,1745353840904,-500.0,0.00022191,2]
[358667259,1745353840914,-500.0,0.00022191,2]
[358667260,1745353840924,-502.22130498,0.00022191,2]
[358667261,1745353840934,-298.91,0.00022191,2]
[358667262,1745353840944,-500.0,0.00022191,2]
[358667263,1745353840954,-500.0,0.00022191,2]
[358667264,1745353840964,-575.50236083,0.00022191,2]
[358667265,1745353840974,-500.0,0.00022191,2]
[358667266,1745353840985,-500.0,0.00022191,2]
[358667267,1745353840995,-500.0,0.00022191,2]
[358667268,1745353841005,-501.05278398,0.00022191,2]
[358667269,1745353841015,-500.0,0.00022191,2]
[358667270,1745353841024,-500.0,0.00022191,2]
[358667271,1745353841036,-203.4994943,0.00022191,2]
[358667272,1745353841046,-500.0,0.00022191,2]
[358667273,1745353841056,-500.0,0.00022191,2]
[358667274,1745353841066,-500.0,0.00022191,2]
[358667275,1745353841080,-500.0,0.00022191,2]
[358667276,1745353841090,-500.0,0.00022191,2]
[358667277,1745353841099,-308.32168639,0.00022191,2]
[358667278,1745353841110,-500.0,0.00022191,2]
[358667279,1745353841120,-369.14508832,0.00022191,2]
[358667280,1745353841130,-500.0,0.00022191,2]
[358667281,1745353841140,-503.86594504,0.00022191,2]
[358667282,1745353841150,-500.0,0.00022191,2]
[358667283,1745353841159,-500.0,0.00022191,2]
[358667284,1745353841169,-500.0,0.00022191,2]
[358667285,1745353841179,-500.0,0.00022191,2]
[358667286,1745353841188,-500.0,0.00022191,2]
[358667287,1745353841198,-500.0,0.00022191,2]
[358667288,1745353841207,-397.82,0.00022191,2]
[358667289,1745353841217,-560.95,0.00022191,2]
[358667290,1745353841227,-500.0,0.00022191,2]
[358667291,1745353841237,-232.87,0.00022191,2]
[358667292,1745353841246,-500.0,0.00022191,2]
[358667293,1745353841256,-1045.7,0.00022191,2]
[358667294,1745353841265,-408.04650271,0.00022422,2]
[358667295,1745353841275,-500.0,0.0002245,2]
[358667296,1745353841285,-594.64551039,0.0002245,2]
[358667297,1745353841295,-281.69311386,0.0002245,2]
[358667298,1745353841306,-500.7034327,0.0002245,2]
[358667299,1745353841316,-500.0,0.0002245,2]
[358667300,1745353841326,-500.0,0.0002245,2]
[358667301,1745353841336,-2660.8,0.00022465,2]
[358667302,1745353841347,-2660.8,0.00022465,2]
[358667303,1745353841357,-2660.8,0.00022465,2]
[358667304,1745353841367,-2660.8,0.00022465,2]
[358667305,1745353841377,-2660.8,0.00022465,2]
[358667306,1745353841387,-2660.8,0.00022465,2]
[358667307,1745353841398,-2660.8,0.00022465,2]
[358667308,1745353841408,-2660.8,0.00022465,2]
[358667309,1745353841418,-2660.8,0.00022465,2]
[358667310,1745353841430,-2660.8,0.00022465,2]
[358667311,1745353841440,-2660.8,0.00022465,2]
[358667312,1745353841450,-2660.8,0.00022465,2]
[358667313,1745353841460,-2660.8,0.00022465,2]
[358667314,1745353841471,-2660.8,0.00022465,2]
[358667315,1745353841481,-2660.7,0.00022465,2]
[358667316,1745353841492,-500.0,0.00022465,2]
[358667317,1745353841501,-472.58726242,0.00022465,2]
[358667318,1745353841511,-500.0,0.00022465,2]
[358667319,1745353841521,-500.0,0.00022465,2]
[358667320,1745353841530,-500.0,0.00022465,2]
[358667321,1745353841540,-500.0,0.00022465,2]
[358667322,1745353841550,-580.41,0.00022465,2]
[358667323,1745353841560,-500.0,0.00022465,2]
[358667324,1745353841569,-500.0,0.00022465,2]
[358667325,1745353841579,-1045.7,0.00022465,2]
[358667326,1745353841589,-467.97718408,0.00022519,2]
[358667327,1745353841598,-33157.98540359,0.0002253,2]
[358667328,1745353841608,-500.0,0.00022565,2]
[358667329,1745353841618,-500.0,0.00022565,2]
[358667330,1745353841628,-500.0,0.00022565,2]
[358667331,1745353841638,-500.0,0.00022565,2]
[358667332,1745353841648,-500.0,0.00022565,2]
[358667333,1745353841657,-500.0,0.00022565,2]
[358667334,1745353841668,-466.70770366,0.00022565,2]
[358667335,1745353841677,-500.0,0.00022565,2]
[358667336,1745353841687,-500.0,0.00022565,2]
[358667337,1745353841697,-500.0,0.00022565,2]
[358667338,1745353841707,-500.0,0.00022565,2]
[358667339,1745353841716,-500.0,0.00022565,2]
[358667340,1745353841726,-1000.0,0.00022727,2]
[358667341,1745353841736,-499.99000004,0.00022739,2]
[358667342,1745353841746,-500.0,0.00022739,2]
[358667343,1745353841756,-500.0,0.00022739,2]
[358667344,1745353841766,-500.0,0.00022739,2]
[358667345,1745353841776,-510.52,0.00022739,2]
[358667346,1745353841785,-500.0,0.00022739,2]
[358667347,1745353841796,-1045.7,0.00022739,2]
[358667348,1745353841806,-12570.97479393,0.00022869,2]
[358667349,1745353841816,-160.0,0.00022869,2]
[358667350,1745353841826,-160.0,0.00022869,2]
[358667351,1745353841836,-160.0,0.00022869,2]
[358667352,1745353841845,-420.73667954,0.00022869,2]
[358667353,1745353841855,-160.0,0.00022869,2]
[358667354,1745353841865,-160.0,0.00022869,2]
[358667355,1745353842069,-160.0,0.00022869,2]
[358667356,1745353842082,-500.0,0.00023013,2]
[358667357,1745353842092,-453.18945246,0.00023013,2]
[358667358,1745353842102,-500.0,0.00023013,2]
[358667359,1745353842112,-500.0,0.00023013,2]
[358667360,1745353842122,-1045.7,0.00023013,2]
[358667361,1745353842132,-208.43099093,0.00023098,2]
[358667362,1745353842141,-847.65961128,0.00023159,2]
[358667363,1745353842151,-33157.98540359,0.00023287,2]
[358667364,1745353842161,-500.0,0.00023287,2]
[358667365,1745353842171,-500.0,0.00023287,2]
[358667366,1745353842181,-500.0,0.00023287,2]
[358667367,1745353842190,-1045.7,0.00023287,2]
[358667368,1745353842200,-600.0,0.00023516,2]
[358667369,1745353842211,-500.0,0.00023561,2]
[358667370,1745353842221,-500.0,0.00023561,2]
[358667371,1745353842232,-500.0,0.00023561,2]
[358667372,1745353842241,-1045.7,0.00023561,2]
[358667373,1745353842251,-587.0,0.00023736,2]
[358667374,1745353842261,-587.0,0.00023736,2]
[358667375,1745353842272,-500.0,0.00023835,2]
[358667376,1745353842282,-500.0,0.00023835,2]
[358667377,1745353842292,-500.0,0.00023835,2]
[358667378,1745353842302,-1045.7,0.00023835,2]
[358667379,1745353842311,-729.16666667,0.0002386,2]
[358667380,1745353842321,-151.0,0.00023889,7]
[358667381,1745353842330,-151.0,0.00023889,7]
[358667382,1745353842340,-151.0,0.00023889,7]
[358667383,1745353842351,-151.0,0.00023889,7]
[358667384,1745353842361,-1265.50926598,0.000239,2]
[358667385,1745353842371,-33157.98540359,0.00024043,2]
[358667386,1745353842381,-500.0,0.00024109,2]
[358667388,1745353842391,-500.0,0.00024109,2]
[358667390,1745353842401,-500.0,0.00024109,2]
[358667391,1745353842411,-1045.7,0.00024109,2]
[358667392,1745353842420,-500.0,0.00024383,2]
[358667393,1745353842430,-500.0,0.00024383,2]
[358667394,1745353842440,-500.0,0.00024383,2]
[358667397,1745353842450,-1045.7,0.00024383,2]
[358667399,1745353842460,-500.0,0.00024657,2]
[358667401,1745353842470,-500.0,0.00024657,2]
[358667403,1745353842480,-500.0,0.00024657,2]
[358667405,1745353842490,-1045.7,0.00024657,2]
[358667407,1745353842499,-500.0,0.00024658,2]
[358667409,1745353842509,-500.0,0.00024658,2]
[358667410,1745353842519,-500.0,0.00024658,2]
[358667412,1745353842533,-500.0,0.00024658,2]
[358667414,1745353842544,-500.0,0.00024658,2]
[358667416,1745353842553,-500.0,0.00024658,2]
[358667417,1745353842563,-500.0,0.00024658,2]
[358667418,1745353842573,-500.0,0.00024658,2]
[358667419,1745353842583,-500.0,0.00024658,2]
[358667421,1745353842592,-302.51396988,0.00024658,2]
[358667422,1745353842602,-500.0,0.00024658,2]
[358667424,1745353842612,-500.0,0.00024658,2]
[358667426,1745353842622,-500.0,0.00024773,2]
[358667428,1745353842631,-151.0,0.000248,7]
[358667429,1745353842641,-151.0,0.000248,7]
[358667431,1745353842651,-151.0,0.000248,7]
[358667433,1745353842661,-33157.98540359,0.000248,2]
[358667434,1745353842670,-176091.258735,0.000248,2]
[358667436,1745353842681,-443.72418048,0.00024873,2]
[358667437,1745353842690,-3002.74472583,0.0002489,2]
[358667438,1745353842700,-151.0,0.000249,7]
[358667439,1745353842710,-151.0,0.000249,7]
[358667440,1745353842720,-194.114858,0.000249,7]
[358667442,1745353842730,-151.0,0.000249,7]
[358667443,1745353842740,-151.0,0.000249,7]
[358667444,1745353842750,-151.0,0.000249,7]
[358667445,1745353842760,-438.513328,0.000249,7]
[358667446,1745353842770,-438.513328,0.000249,7]
[358667447,1745353842780,-151.0,0.000249,7]
[358667448,1745353842790,-151.0,0.000249,7]
[358667449,1745353842800,-153375.47820544,0.000249,2]
[358667450,1745353842819,-1422.68,0.000249,2]
[358667451,1745353842831,-823.544997,0.000249,2]
[358667453,1745353842842,-1462.27695507,0.000249,2]
[358667454,1745353842854,-3095.53468668,0.000249,2]
[358667455,1745353842896,-416.49721584,0.000249,2]
[358667456,1745353842908,-1520.21909245,0.000249,2]
[358667457,1745353842996,-142648.94411052,0.000249,2]
[358667458,1745353843005,-151.0,0.000249,7]
[358667459,1745353843016,-500.0,0.00024931,2]
[358667460,1745353843025,-500.0,0.00024931,2]
[358667461,1745353843038,-456.51,0.00024931,2]
[358667462,1745353843048,-1045.7,0.00024931,2]
[358667463,1745353843059,-900.0,0.0002516,2]
[358667464,1745353843069,-500.0,0.00025205,2]
[358667465,1745353843080,-500.0,0.00025205,2]
[358667467,1745353843091,-1045.7,0.00025205,2]
[358667469,1745353843101,-591.35,0.00025479,2]
[358667471,1745353843112,-500.0,0.00025479,2]
[358667472,1745353843121,-1045.7,0.00025479,2]
[358667473,1745353843132,-500.0,0.00025753,2]
[358667474,1745353843142,-1045.7,0.00025753,2]
[358667475,1745353843151,-847.65961128,0.00025766,2]
[358667476,1745353843162,-823.0,0.00025846,2]
[358667477,1745353843172,-500.0,0.00026027,2]
[358667478,1745353843182,-1045.7,0.00026027,2]
[358667479,1745353843192,-500.0,0.00026301,2]
[358667480,1745353843203,-1045.7,0.00026301,2]
[358667481,1745353843213,-500.0,0.00026575,2]
[358667482,1745353843223,-1045.7,0.00026575,2]
[358667483,1745353843233,-315.16872661,0.00026804,2]
[358667484,1745353843242,-546.8773633,0.00026849,2]
[358667485,1745353843251,-1045.7,0.00026849,2]
[358667486,1745353843261,-1045.7,0.00027123,2]
[358667487,1745353843271,-544.0,0.0002719,2]
[358667488,1745353843281,-9221.26003453,0.00027342,2]
[358667497,1745353845820,-351.59094771,0.0002719,2]
[358667498,1745353845928,-250.0,0.00026761,2]
[358667499,1745353845938,-356.40905229,0.0002719,2]
[358667500,1745353845948,-1137.04930277,0.00027342,2]
[358667501,1745353845958,-1000.0,0.00027352,2]
[358667502,1745353845968,-1000.0,0.00027352,2]
[358667503,1745353845977,-1000.0,0.00027352,2]
[358667504,1745353845987,-431.78433194,0.00027352,2]
[358667505,1745353845997,-500.0,0.00027352,2]
[358667506,1745353846006,-500.0,0.00027352,2]
[358667507,1745353846016,-1000.0,0.00027352,2]
[358667508,1745353846025,-1000.0,0.00027352,2]
[358667509,1745353846038,-1000.0,0.00027352,2]
[358667510,1745353846048,-1045.7,0.00027397,2]
[358667511,1745353846058,-500.0,0.00027397,5]
[358667512,1745353846068,-1045.7,0.00027671,2]
[358667513,1745353846078,-153.0,0.0002781,2]
[358667514,1745353846088,-153.0,0.0002781,2]
[358667515,1745353846097,-153.0,0.0002781,2]
[358667516,1745353846107,-153.0,0.0002781,2]
[358667517,1745353846118,-153.0,0.00027813,2]
[358667518,1745353846128,-153.0,0.00027813,2]
[358667519,1745353846138,-153.0,0.00027813,2]
[358667520,1745353846148,-153.0,0.00027813,2]
[358667521,1745353846157,-153.0,0.00027813,2]
[358667522,1745353846167,-153.0,0.00027813,2]
[358667523,1745353846177,-153.0,0.00027813,2]
[358667524,1745353846189,-153.0,0.0002782,2]
[358667525,1745353846198,-153.0,0.00027822,2]
[358667526,1745353846209,-153.0,0.00027822,2]
[358667527,1745353846219,-153.0,0.00027822,2]
[358667528,1745353846231,-620.07675614,0.00027929,5]
[358667529,1745353846241,-500.0,0.00027929,5]
[358667530,1745353846251,-1045.7,0.00027945,2]
[358667531,1745353846260,-175.00878966,0.00028045,5]
[358667532,1745353846270,-1000.0,0.00028045,5]
[358667533,1745353846280,-500.0,0.00028045,5]
[358667534,1745353846290,-258.6302285,0.00028045,5]
[358667535,1745353868487,1000.0,0.00019921,2]
[358667536,1745353876322,250.0,0.00019921,2]
[358667540,1745354019997,151.0,0.0001993,2]
[358667546,1745354651252,-199.68954371,0.0002067,2]
[358667547,1745354651278,-300.31045629,0.0002067,2]
[358667549,1745354654743,-699.68954371,0.0002067,2]
[358667550,1745354658665,-337.0966198,0.00020672,2]
[358667551,1745354658688,-233.16360858,0.0002077,2]
[358667558,1745354704999,-89.31826342,0.0002077,2]
[358667559,1745354705028,-210.68173658,0.00020999,2]
[358667560,1745354706897,-199.9956401,0.0002057,2]
[358667561,1745354706919,-580.00511882,0.00020999,2]
[358667563,1745354712048,-199.9956401,0.00020999,2]
[358667564,1745354714098,-300.0,0.00021671,2]
[358667565,1745354714122,-200.0,0.00021671,2]
[358667568,1745354762962,-300.0,0.00021572,2]
[358667569,1745354765832,-576.91966488,0.00021572,2]
[358667572,1745354768738,-100.0,0.00021671,2]
[358667573,1745354768762,-300.0,0.00021671,2]
[358667574,1745354768788,-100.0,0.00021672,2]
[358667575,1745354771977,-400.0,0.00021672,2]
[358667576,1745354772005,-100.0,0.00021672,2]
[358667577,1745354776043,-400.0,0.00021672,2]
[358667578,1745354776071,-100.0,0.00021672,2]
[358667579,1745354779399,-400.0,0.00021672,2]
[358667580,1745354782589,-322.80270147,0.00021672,2]
[358667600,1745354967500,1124.60902004,0.00019572,2]
[358667629,1745355036252,-527.0,0.00020769,2]
[358667630,1745355036262,-9132.4597579,0.0002077,2]
[358667631,1745355036272,-300.0,0.00020964,2]
[358667632,1745355036282,-300.0,0.00020964,2]
[358667633,1745355036292,-459.45769436,0.00020965,2]
[358667634,1745355036308,-22920.84142024,0.00020965,2]
[358667635,1745355036330,-250.0,0.00020999,2]
[358667636,1745355036342,-500.0,0.00021671,2]
[358667637,1745355036354,-500.0,0.00021671,2]
[358667638,1745355036367,-500.0,0.00021671,2]
[358667639,1745355036379,-500.0,0.00021671,2]
[358667640,1745355036390,-500.0,0.00021671,2]
[358667641,1745355036402,-500.0,0.00021671,2]
[358667642,1745355036414,-500.0,0.00021671,2]
[358667643,1745355036426,-500.0,0.00021671,2]
[358667644,1745355036436,-500.0,0.00021671,2]
[358667645,1745355036447,-500.0,0.00021671,2]
[358667646,1745355036458,-500.0,0.00021671,2]
[358667647,1745355036469,-561.13133538,0.00021671,2]
[358667648,1745355036479,-500.0,0.00021671,2]
[358667649,1745355036489,-500.0,0.00021671,2]
[358667650,1745355036501,-500.0,0.00021671,2]
[358667651,1745355036512,-500.0,0.00021671,2]
[358667652,1745355036522,-500.0,0.00021671,2]
[358667653,1745355036532,-500.0,0.00021671,2]
[358667654,1745355036542,-500.0,0.00021671,2]
[358667655,1745355036552,-500.0,0.00021671,2]